Workbook

Sheet Sheet1
A1: 2021年上半年大英县部分事业单位公开考试招聘工作人员考试总成绩排名及进入体检人员名单
A2: 岗位编码 | B2: 招聘单位 | C2: 招聘专业 | D2: 招聘人数 | E2: 准考证号 | F2: 姓名 | G2: 性别 | H2: 笔试 成绩 | I2: 政策性加分 | J2: 笔试总成绩 | L2: 名次 | M2: 面试成绩 | O2: 考试 总成绩 | P2: 总排名 | Q2: 是否进入体检 | R2: 备注
J3: 原始 | K3: 折合 | M3: 原始 | N3: 折合
A4: 616001 | B4: 大英县文艺创作中心 | C4: 本科：中国语言文学类、外国语言文学类、新闻传播学类； 研究生：中国语言文学类、外国语言文学类、新闻传播学类 | D4: 1 | E4: 2616001010704 | F4: 王玉 | G4: 女 | H4: 76.00 | J4: 76.00 | K4: =J4*0.6 -> 45.60 | L4: 1 | M4: 73.60 | N4: =M4*0.4 -> 29.44 | O4: =K4+N4 -> 75.04 | P4: 1 | Q4: 是
A5: 616001 | E5: 2616001010711 | F5: 何倩 | G5: 女 | H5: 70.60 | J5: 70.60 | K5: =J5*0.6 -> 42.36 | L5: 2 | M5: 73.40 | N5: =M5*0.4 -> 29.36 | O5: =K5+N5 -> 71.72 | P5: 2
A6: 616001 | E6: 2616001010708 | F6: 余丽娇 | G6: 女 | H6: 68.00 | J6: 68.00 | K6: 40.80 | L6: 3 | M6: 74.40 | N6: 29.76 | O6: 70.56 | P6: 3
A7: 616002 | B7: 大英县社会管理创新工作中心 | C7: 本科：汉语言文学专业、汉语言专业、秘书学专业、行政管理专业； 研究生：不限 | D7: 1 | E7: 2616002010820 | F7: 黄巧宁 | G7: 女 | H7: 66.00 | J7: 66.00 | K7: 39.60 | L7: 1 | M7: 74.00 | N7: 29.60 | O7: 69.20 | P7: 1 | Q7: 是
A8: 616002 | E8: 2616002010827 | F8: 郭宇 | G8: 男 | H8: 63.40 | J8: 63.40 | K8: 38.04 | L8: 2 | R8: 面试缺考
A9: 616002 | E9: 2616002010819 | F9: 黄扬敏 | G9: 女 | H9: 62.40 | J9: 62.40 | K9: 37.44 | L9: 3 | R9: 面试缺考
A10: 616003 | B10: 大英县建设工程质量监督站 | C10: 本科：汉语言专业、汉语言文学专业、秘书学专业； 研究生：汉语言文字学专业 | D10: 1 | E10: 2616003010902 | F10: 李鑫燕 | G10: 女 | H10: 67.00 | J10: 67.00 | K10: 40.20 | L10: 1 | M10: 73.20 | N10: 29.28 | O10: 69.48 | P10: 1 | Q10: 是
A11: 616003 | E11: 2616003010903 | F11: 胡利娜 | G11: 女 | H11: 61.20 | J11: 61.20 | K11: 36.72 | L11: 2 | M11: 75.00 | N11: 30.00 | O11: 66.72 | P11: 2
A12: 616003 | E12: 2616003010906 | F12: 任诗怡 | G12: 女 | H12: 58.40 | J12: =H12+I12 -> 58.40 | K12: 35.04 | L12: 4 | M12: 73.00 | N12: 29.20 | O12: 64.24 | P12: 3
A13: 616004 | B13: 大英县建设工程质量监督站 | C13: 本科：经济学专业、会计学专业、财务管理专业； 研究生：会计学专业 | D13: 1 | E13: 2616004010916 | F13: 邓雅文 | G13: 女 | H13: 65.50 | J13: 65.50 | K13: 39.30 | L13: 2 | M13: 79.00 | N13: 31.60 | O13: 70.90 | P13: 1 | Q13: 是
A14: 616004 | E14: 2616004010922 | F14: 肖娇 | G14: 女 | H14: 68.60 | J14: 68.60 | K14: 41.16 | L14: 1 | M14: 70.80 | N14: 28.32 | O14: 69.48 | P14: 2
A15: 616004 | E15: 2616004010921 | F15: 刘小艺 | G15: 女 | H15: 63.90 | J15: 63.90 | K15: 38.34 | L15: 3 | M15: 65.00 | N15: 26.00 | O15: 64.34 | P15: 3
A16: 616005 | B16: 大英县建设工程质量监督站 | C16: 本科：通信工程专业、土木工程专业、道路桥梁与渡河工程专业、城乡规划专业； 研究生：土木工程专业、市政工程专业、风景园林学专业 | D16: 1 | E16: 2616005011015 | F16: 陈春利 | G16: 女 | H16: 71.40 | J16: 71.40 | K16: 42.84 | L16: 1 | M16: 75.20 | N16: 30.08 | O16: 72.92 | P16: 1 | Q16: 是
A17: 616005 | E17: 2616005011011 | F17: 王朝军 | G17: 男 | H17: 68.20 | J17: 68.20 | K17: 40.92 | L17: 2 | M17: 74.40 | N17: 29.76 | O17: 70.68 | P17: 2
A18: 616005 | E18: 2616005011027 | F18: 陈阳 | G18: 男 | H18: 68.10 | J18: 68.10 | K18: 40.86 | L18: 3 | M18: 71.80 | N18: 28.72 | O18: 69.58 | P18: 3
A19: 616006 | B19: 大英县经济信息中心 | C19: 本科：工商管理类、计算机类、化工与制药类、中国语言文学类、经济学类； 研究生：不限 | D19: 1 | E19: 2616006011224 | F19: 李浩 | G19: 男 | H19: 71.30 | J19: 71.30 | K19: 42.78 | L19: 1 | M19: 74.30 | N19: 29.72 | O19: 72.50 | P19: 1 | Q19: 是
A20: 616006 | E20: 2616006011219 | F20: 陈莹 | G20: 女 | H20: 70.70 | J20: 70.70 | K20: 42.42 | L20: 2 | M20: 74.80 | N20: 29.92 | O20: 72.34 | P20: 2
A21: 616006 | E21: 2616006011119 | F21: 彭倩 | G21: 女 | H21: 69.80 | J21: 69.80 | K21: 41.88 | L21: 3 | M21: 74.40 | N21: 29.76 | O21: 71.64 | P21: 3
A22: 616007 | B22: 大英县项目服务中心 | C22: 本科：经济学专业、国民经济管理专业、工程管理专业； | D22: 3 | E22: 2616007011417 | F22: 张聪聪 | G22: 女 | H22: 75.90 | J22: 75.90 | K22: 45.54 | L22: 1 | M22: 77.40 | N22: 30.96 | O22: 76.50 | P22: 1 | Q22: 是
A23: 616007 | E23: 2616007011405 | F23: 李洁 | G23: 女 | H23: 75.30 | J23: 75.30 | K23: 45.18 | L23: 2 | M23: 76.30 | N23: 30.52 | O23: 75.70 | P23: 2 | Q23: 是
A24: 616007 | E24: 2616007011510 | F24: 杨丽 | G24: 女 | H24: 74.00 | J24: 74.00 | K24: 44.40 | L24: 3 | M24: 73.00 | N24: 29.20 | O24: 73.60 | P24: 3 | Q24: 是
A25: 616007 | E25: 2616007011403 | F25: 周上林 | G25: 男 | H25: 69.60 | J25: 69.60 | K25: 41.76 | L25: 6 | M25: 78.60 | N25: 31.44 | O25: 73.20 | P25: 4
A26: 616007 | E26: 2616007011428 | F26: 谭堤文 | G26: 女 | H26: 68.90 | J26: 68.90 | K26: 41.34 | L26: 8 | M26: 73.00 | N26: 29.20 | O26: 70.54 | P26: 5
A27: 616007 | E27: 2616007011305 | F27: 罗莹嘉 | G27: 女 | H27: 64.30 | I27: 2.00 | J27: =H27+I27 -> 66.30 | K27: 39.78 | L27: 10 | M27: 74.56 | N27: 29.82 | O27: 69.60 | P27: 6
A28: 616007 | E28: 2616007011327 | F28: 徐琦佩 | G28: 男 | H28: 65.10 | I28: 4.00 | J28: 69.10 | K28: 41.46 | L28: 7 | M28: 69.60 | N28: 27.84 | O28: 69.30 | P28: 7
A29: 616007 | E29: 2616007011502 | F29: 张勇 | G29: 男 | H29: 65.80 | J29: =H29+I29 -> 65.80 | K29: 39.48 | L29: 11 | M29: 73.00 | N29: 29.20 | O29: 68.68 | P29: 8
A30: 616007 | E30: 2616007011314 | F30: 胡睿 | G30: 女 | H30: 65.50 | J30: 65.50 | K30: 39.30 | L30: 12 | M30: 71.40 | N30: 28.56 | O30: 67.86 | P30: 9
A31: 616008 | B31: 大英县安全生产信息平台监管中心 | C31: 本科：通信工程专业、信息安全专业、网络空间安全专业、指挥信息系统专业； 研究生：网络空间安全专业 | D31: 1 | E31: 2616008011521 | F31: 胡磊 | G31: 男 | H31: 63.40 | I31: 4.00 | J31: 67.40 | K31: 40.44 | L31: 2 | M31: 80.10 | N31: 32.04 | O31: 72.48 | P31: 1 | Q31: 是
A32: 616008 | E32: 2616008011525 | F32: 邱善磊 | G32: 男 | H32: 72.90 | J32: 72.90 | K32: 43.74 | L32: 1 | M32: 70.50 | N32: 28.20 | O32: 71.94 | P32: 2
A33: 616008 | E33: 2616008011529 | F33: 伏永义 | G33: 男 | H33: 51.30 | J33: 51.30 | K33: 30.78 | L33: 6 | M33: 70.00 | N33: 28.00 | O33: 58.78 | P33: 3
A34: 616009 | B34: 大英县城市管理特勤大队 | C34: 本科：工商管理专业、汉语言专业、汉语言文学专业、编辑出版学专业； 研究生：汉语言文字学专业 | D34: 1 | E34: 2616009011612 | F34: 邓权 | G34: 男 | H34: 63.80 | J34: 63.80 | K34: 38.28 | L34: 3 | M34: 76.30 | N34: 30.52 | O34: 68.80 | P34: 1 | Q34: 是
A35: 616009 | E35: 2616009011606 | F35: 孙林 | G35: 男 | H35: 66.40 | J35: 66.40 | K35: 39.84 | L35: 1 | M35: 71.40 | N35: 28.56 | O35: 68.40 | P35: 2
A36: 616009 | E36: 2616009011603 | F36: 周奕凝 | G36: 男 | H36: 62.70 | J36: =H36+I36 -> 62.70 | K36: 37.62 | L36: 4 | M36: 72.90 | N36: 29.16 | O36: 66.78 | P36: 3
A37: 616010 | B37: 大英县城市管理特勤大队 | C37: 本科：通信工程专业、电波传播与天线专业、电子信息科学与技术专业； 研究生：通信与信息系统专业 | D37: 1 | E37: 2616010011615 | F37: 刘媛 | G37: 女 | H37: 72.70 | J37: 72.70 | K37: =J37*0.6 -> 43.62 | L37: 1 | M37: 76.00 | N37: =M37*0.4 -> 30.40 | O37: =K37+N37 -> 74.02 | P37: 1 | Q37: 是
A38: 616010 | E38: 2616010011621 | F38: 柏维 | G38: 男 | H38: 66.10 | J38: 66.10 | K38: 39.66 | L38: 3 | M38: 70.90 | N38: 28.36 | O38: 68.02 | P38: 2
A39: 616010 | E39: 2616010011629 | F39: 邓扬琼 | G39: 女 | H39: 61.40 | I39: 4.00 | J39: =H39+I39 -> 65.40 | K39: 39.24 | L39: 4 | M39: 70.00 | N39: 28.00 | O39: 67.24 | P39: 3
A40: 616011 | B40: 大英县建设监察大队 | C40: 本科：工程造价专业、会计学专业、经济学专业； 研究生：管理科学与工程专业、会计学专业、应用经济学专业 | D40: 1 | E40: 2616011011721 | F40: 雷思琦 | G40: 女 | H40: 67.90 | J40: 67.90 | K40: 40.74 | L40: 1 | M40: 83.32 | N40: 33.33 | O40: 74.07 | P40: 1 | Q40: 是
A41: 616011 | E41: 2616011011715 | F41: 熊辉 | G41: 男 | H41: 66.30 | J41: 66.30 | K41: 39.78 | L41: 3 | M41: 73.70 | N41: 29.48 | O41: 69.26 | P41: 2
A42: 616011 | E42: 2616011011718 | F42: 龚宇 | G42: 女 | H42: 67.40 | J42: 67.40 | K42: 40.44 | L42: 2 | M42: 69.80 | N42: 27.92 | O42: 68.36 | P42: 3
A43: 616012 | B43: 大英县消费维权和民营经济服务中心 | C43: 法学类 | D43: 2 | E43: 2616012012019 | F43: 蔡丹 | G43: 女 | H43: 71.50 | J43: 71.50 | K43: 42.90 | L43: 1 | M43: 80.90 | N43: 32.36 | O43: 75.26 | P43: 1 | Q43: 是
A44: 616012 | E44: 2616012011929 | F44: 邓洋 | G44: 男 | H44: 68.70 | J44: 68.70 | K44: 41.22 | L44: 2 | M44: 72.90 | N44: 29.16 | O44: 70.38 | P44: 2 | Q44: 是
A45: 616012 | E45: 2616012011920 | F45: 谭涵 | G45: 男 | H45: 68.30 | J45: 68.30 | K45: 40.98 | L45: 3 | M45: 73.10 | N45: 29.24 | O45: 70.22 | P45: 3
A46: 616012 | E46: 2616012012024 | F46: 蒋晋 | G46: 女 | H46: 66.30 | J46: =H46+I46 -> 66.30 | K46: 39.78 | L46: 7 | M46: 75.92 | N46: 30.37 | O46: 70.15 | P46: 4
A47: 616012 | E47: 2616012011915 | F47: 袁悦 | G47: 女 | H47: 66.50 | J47: 66.50 | K47: 39.90 | L47: 6 | M47: 74.40 | N47: 29.76 | O47: 69.66 | P47: 5
A48: 616012 | E48: 2616012011925 | F48: 黄胜江 | G48: 男 | H48: 67.00 | J48: 67.00 | K48: 40.20 | L48: 4 | M48: 71.60 | N48: 28.64 | O48: 68.84 | P48: 6
A49: 616013 | B49: 大英县市场服务中心 | C49: 大专：知识产权管理专业、旅游管理专业、道路桥梁工程技术专业、数控技术专业； | D49: 2 | E49: 2616013012211 | F49: 王帅 | G49: 男 | H49: 73.60 | J49: 73.60 | K49: 44.16 | L49: 2 | M49: 78.80 | N49: 31.52 | O49: 75.68 | P49: 1 | Q49: 是
A50: 616013 | E50: 2616013012405 | F50: 邓思龙 | G50: 男 | H50: 72.10 | J50: 72.10 | K50: 43.26 | L50: 3 | M50: 73.60 | N50: 29.44 | O50: 72.70 | P50: 2 | Q50: 是
A51: 616013 | E51: 2616013012111 | F51: 代欣 | G51: 男 | H51: 70.60 | J51: 70.60 | K51: 42.36 | L51: 4 | M51: 71.30 | N51: 28.52 | O51: 70.88 | P51: 3
A52: 616013 | E52: 2616013012105 | F52: 汤昌聪 | G52: 男 | H52: 68.70 | J52: 68.70 | K52: 41.22 | L52: 5 | M52: 72.20 | N52: 28.88 | O52: 70.10 | P52: 4
A53: 616013 | E53: 2616013012321 | F53: 李林廷 | G53: 男 | H53: 68.50 | J53: 68.50 | K53: 41.10 | L53: 7 | M53: 71.30 | N53: 28.52 | O53: 69.62 | P53: 5
A54: 616013 | E54: 2616013012202 | F54: 唐铭泽 | G54: 男 | H54: 68.50 | J54: 68.50 | K54: 41.10 | L54: 7 | M54: 70.80 | N54: 28.32 | O54: 69.42 | P54: 6
A55: 616013 | E55: 2616013012228 | F55: 尹鹤翔 | G55: 男 | H55: 68.70 | J55: 68.70 | K55: 41.22 | L55: 5 | M55: 68.80 | N55: 27.52 | O55: 68.74 | P55: 7
A56: 616014 | B56: 大英县土地开发整理中心 | C56: 本科：地理科学类、建筑类、林学类、管理科学与工程类、法学类、测绘类、土木类； | D56: 1 | E56: 2616014012508 | F56: 尹纯 | G56: 女 | H56: 68.90 | J56: 68.90 | K56: 41.34 | L56: 3 | M56: 76.40 | N56: 30.56 | O56: 71.90 | P56: 1 | Q56: 是
A57: 616014 | E57: 2616014012510 | F57: 侯源 | G57: 男 | H57: 70.40 | J57: 70.40 | K57: 42.24 | L57: 2 | M57: 73.60 | N57: 29.44 | O57: 71.68 | P57: 2
A58: 616014 | E58: 2616014012507 | F58: 姜仪 | G58: 女 | H58: 65.20 | J58: 65.20 | K58: 39.12 | L58: 5 | M58: 77.40 | N58: 30.96 | O58: 70.08 | P58: 3
A59: 616015 | B59: 大英县不动产登记中心 | C59: 本科：地理科学类、建筑类、林学类、管理科学与工程类、法学类、测绘类、土木类； 研究生：工商管理类。 | D59: 1 | E59: 2616015012526 | F59: 易星佑 | G59: 女 | H59: 64.10 | J59: 64.10 | K59: 38.46 | L59: 1 | M59: 76.60 | N59: 30.64 | O59: 69.10 | P59: 1 | Q59: 是
A60: 616015 | E60: 2616015012528 | F60: 蔺东 | G60: 男 | H60: 61.10 | J60: 61.10 | K60: 36.66 | L60: 2 | M60: 71.60 | N60: 28.64 | O60: 65.30 | P60: 2
A61: 616015 | E61: 2616015012605 | F61: 代鑫 | G61: 男 | H61: 59.20 | J61: 59.20 | K61: 35.52 | L61: 3 | M61: 70.20 | N61: 28.08 | O61: 63.60 | P61: 3
A62: 616016 | B62: 大英县城乡规划编制研究中心 | C62: 本科：地理科学类、建筑类、林学类、管理科学与工程类、法学类、测绘类、土木类； 研究生：工商管理类。 | D62: 1 | E62: 2616016012702 | F62: 裴波安 | G62: 男 | H62: 72.10 | J62: 72.10 | K62: 43.26 | L62: 1 | R62: 面试缺考
A63: 616016 | E63: 2616016012620 | F63: 成刚 | G63: 男 | H63: 68.70 | J63: 68.70 | K63: 41.22 | L63: 2 | M63: 75.20 | N63: 30.08 | O63: 71.30 | P63: 1 | Q63: 是
A64: 616016 | E64: 2616016012612 | F64: 王海 | G64: 男 | H64: 67.10 | J64: 67.10 | K64: 40.26 | L64: 3 | M64: 75.00 | N64: 30.00 | O64: 70.26 | P64: 2
A65: 616017 | B65: 大英县卓筒井镇自然资源和规划所 | C65: 本科：地理科学类、建筑类、林学类、管理科学与工程类、法学类、测绘类、土木类； 研究生：工商管理类。 | D65: 1 | E65: 2616017012704 | F65: 赖云伟 | G65: 男 | H65: 70.10 | J65: 70.10 | K65: 42.06 | L65: 1 | M65: 75.40 | N65: 30.16 | O65: 72.22 | P65: 1 | Q65: 是
A66: 616017 | E66: 2616017012714 | F66: 夏兴伟 | G66: 男 | H66: 65.30 | J66: 65.30 | K66: 39.18 | L66: 2 | M66: 74.20 | N66: 29.68 | O66: 68.86 | P66: 2
A67: 616017 | E67: 2616017012712 | F67: 唐龙 | G67: 男 | H67: 63.70 | J67: 63.70 | K67: 38.22 | L67: 3 | M67: 70.20 | N67: 28.08 | O67: 66.30 | P67: 3
A68: 616018 | B68: 大英县水利工程质量监督管理站 | C68: 本科：水利水电工程专业、通信工程专业、水利水电建筑工程专业； 研究生：水利水电工程专业、水利工程专业 | D68: 1 | E68: 2616018012724 | F68: 张磊 | G68: 男 | H68: 71.80 | J68: 71.80 | K68: 43.08 | L68: 1 | M68: 75.40 | N68: 30.16 | O68: 73.24 | P68: 1 | Q68: 是
A69: 616018 | E69: 2616018012723 | F69: 胡茂林 | G69: 男 | H69: 66.10 | J69: 66.10 | K69: =J69*0.6 -> 39.66 | L69: 2 | M69: 72.40 | N69: =M69*0.4 -> 28.96 | O69: =K69+N69 -> 68.62 | P69: 2
A70: 616018 | E70: 2616018012719 | F70: 汪进 | G70: 男 | H70: 66.10 | J70: 66.10 | K70: 39.66 | L70: 2 | R70: 面试缺考
A71: 616019 | B71: 四川大英经济开发区投资促进服务中心 | C71: 本科：汉语言文学专业、汉语言专业、劳动与社会保障专业、化学工程与工艺专业、自动化专业； 研究生：汉语言文字学专业 | D71: 1 | E71: 2616019012803 | F71: 唐子傲 | G71: 男 | H71: 74.70 | J71: 74.70 | K71: 44.82 | L71: 1 | M71: 80.40 | N71: 32.16 | O71: 76.98 | P71: 1 | Q71: 是
A72: 616019 | E72: 2616019012806 | F72: 邹敏 | G72: 女 | H72: 70.50 | J72: 70.50 | K72: 42.30 | L72: 4 | M72: 82.80 | N72: 33.12 | O72: 75.42 | P72: 2
A73: 616019 | E73: 2616019012730 | F73: 孔德刚 | G73: 男 | H73: 69.50 | J73: 69.50 | K73: 41.70 | L73: 5 | M73: 73.40 | N73: 29.36 | O73: 71.06 | P73: 3
A74: 616020 | B74: 大英县现代农业园区服务中心 | C74: 本科：农学专业、设施农业科学与工程专业、智慧农业专业、农业工程专业、汉语言文学专业、汉语言专业； 研究生：不限。 | D74: 1 | E74: 2616020012820 | F74: 桂彬超 | G74: 男 | H74: 71.60 | J74: 71.60 | K74: 42.96 | L74: 1 | M74: 72.80 | N74: 29.12 | O74: 72.08 | P74: 1 | Q74: 是
A75: 616020 | E75: 2616020012818 | F75: 唐鑫 | G75: 男 | H75: 66.60 | J75: 66.60 | K75: 39.96 | L75: 2 | R75: 面试缺考
A76: 616020 | E76: 2616020012821 | F76: 余力恒 | G76: 男 | H76: 65.10 | J76: 65.10 | K76: 39.06 | L76: 3 | M76: 71.60 | N76: 28.64 | O76: 67.70 | P76: 2
A77: 616021 | B77: 盐井街道乡村振兴和宣传文化服务中心 | C77: 本科：经济学专业、会计学专业、财务管理专业、审计学专业； 研究生：财政学专业、会计学专业 | D77: 1 | E77: 2616021012904 | F77: 程曦 | G77: 女 | H77: 69.30 | J77: 69.30 | K77: 41.58 | L77: 1 | M77: 79.60 | N77: 31.84 | O77: 73.42 | P77: 1 | Q77: 是
A78: 616021 | E78: 2616021012829 | F78: 蒋艳梅 | G78: 女 | H78: 65.80 | J78: 65.80 | K78: 39.48 | L78: 3 | M78: 77.20 | N78: 30.88 | O78: 70.36 | P78: 2
A79: 616021 | E79: 2616021013005 | F79: 张秀华 | G79: 女 | H79: 66.10 | J79: 66.10 | K79: 39.66 | L79: 2 | M79: 73.40 | N79: 29.36 | O79: 69.02 | P79: 3
A80: 616022 | B80: 盐井街道乡村振兴和宣传文化服务中心 | C80: 本科：社会学专业、社会工作专业、社会工作与管理专业； 研究生：社会学类 | D80: 1 | E80: 2616022013021 | F80: 钱丹 | G80: 女 | H80: 69.00 | I80: 4.00 | J80: 73.00 | K80: 43.80 | L80: 1 | M80: 80.60 | N80: 32.24 | O80: 76.04 | P80: 1 | Q80: 是
A81: 616022 | E81: 2616022013026 | F81: 张琪鑫 | G81: 女 | H81: 67.20 | J81: 67.20 | K81: 40.32 | L81: 2 | M81: 75.00 | N81: 30.00 | O81: 70.32 | P81: 2
A82: 616022 | E82: 2616022013024 | F82: 王健 | G82: 男 | H82: 67.10 | J82: 67.10 | K82: 40.26 | L82: 3 | R82: 面试缺考
A83: 616023 | B83: 盐井街道乡村振兴和宣传文化服务中心 | C83: 本科：汉语言文学专业，汉语言专业，中国语言与文化专业； 研究生：中国语言文学类 | D83: 1 | E83: 2616023013128 | F83: 王私语 | G83: 女 | H83: 71.00 | J83: 71.00 | K83: 42.60 | L83: 1 | M83: 80.80 | N83: 32.32 | O83: 74.92 | P83: 1 | Q83: 是
A84: 616023 | E84: 2616023013117 | F84: 周贤 | G84: 男 | H84: 67.30 | J84: 67.30 | K84: 40.38 | L84: 3 | M84: 81.20 | N84: 32.48 | O84: 72.86 | P84: 2
A85: 616023 | E85: 2616023013111 | F85: 何军 | G85: 男 | H85: 67.40 | J85: 67.40 | K85: 40.44 | L85: 2 | M85: 76.60 | N85: 30.64 | O85: 71.08 | P85: 3
A86: 616024 | B86: 盐井街道乡村振兴和宣传文化服务中心 | C86: 不限 | D86: 6 | E86: 2616024013323 | F86: 周琳 | G86: 女 | H86: 78.00 | I86: 4.00 | J86: 82.00 | K86: 49.20 | L86: 1 | M86: 78.40 | N86: 31.36 | O86: 80.56 | P86: 1 | Q86: 是
A87: 616024 | E87: 2616024020503 | F87: 龚欢 | G87: 男 | H87: 77.90 | J87: 77.90 | K87: 46.74 | L87: 3 | M87: 78.20 | N87: 31.28 | O87: 78.02 | P87: 2 | Q87: 是
A88: 616024 | E88: 2616024021901 | F88: 何艳 | G88: 女 | H88: 78.50 | J88: 78.50 | K88: 47.10 | L88: 2 | M88: 77.20 | N88: 30.88 | O88: 77.98 | P88: 3 | Q88: 是
A89: 616024 | E89: 2616024020603 | F89: 汤思婳 | G89: 女 | H89: 75.70 | J89: 75.70 | K89: 45.42 | L89: 8 | M89: 81.20 | N89: 32.48 | O89: 77.90 | P89: 4 | Q89: 是
A90: 616024 | E90: 2616024020803 | F90: 刘瀛 | G90: 女 | H90: 77.80 | J90: 77.80 | K90: 46.68 | L90: 4 | M90: 77.80 | N90: 31.12 | O90: 77.80 | P90: 5 | Q90: 是
A91: 616024 | E91: 2616024021627 | F91: 谭月佳 | G91: 女 | H91: 77.70 | J91: 77.70 | K91: 46.62 | L91: 5 | M91: 77.40 | N91: 30.96 | O91: 77.58 | P91: 6 | Q91: 是
A92: 616024 | E92: 2616024021622 | F92: 杨惋迪 | G92: 女 | H92: 76.10 | J92: 76.10 | K92: 45.66 | L92: 6 | M92: 77.20 | N92: 30.88 | O92: 76.54 | P92: 7
A93: 616024 | E93: 2616024021226 | F93: 刘亮亮 | G93: 男 | H93: 72.20 | J93: 72.20 | K93: 43.32 | L93: 14 | M93: 82.20 | N93: 32.88 | O93: 76.20 | P93: 8
A94: 616024 | E94: 2616024020318 | F94: 代磊 | G94: 男 | H94: 74.70 | J94: 74.70 | K94: 44.82 | L94: 10 | M94: 78.40 | N94: 31.36 | O94: 76.18 | P94: 9
A95: 616024 | E95: 2616024020707 | F95: 张文平 | G95: 女 | H95: 75.20 | J95: 75.20 | K95: 45.12 | L95: 9 | M95: 76.60 | N95: 30.64 | O95: 75.76 | P95: 10
A96: 616024 | E96: 2616024021306 | F96: 于佳 | G96: 女 | H96: 74.50 | J96: 74.50 | K96: 44.70 | L96: 11 | M96: 76.80 | N96: 30.72 | O96: 75.42 | P96: 11
A97: 616024 | E97: 2616024020115 | F97: 邱珂 | G97: 男 | H97: 71.90 | J97: 71.90 | K97: 43.14 | L97: 17 | M97: 80.40 | N97: 32.16 | O97: 75.30 | P97: 12
A98: 616024 | E98: 2616024021324 | F98: 刘宝玲 | G98: 女 | H98: 73.90 | J98: 73.90 | K98: 44.34 | L98: 12 | M98: 77.20 | N98: 30.88 | O98: 75.22 | P98: 13
A99: 616024 | E99: 2616024021005 | F99: 张丽 | G99: 女 | H99: 75.80 | J99: 75.80 | K99: 45.48 | L99: 7 | M99: 72.80 | N99: 29.12 | O99: 74.60 | P99: 14
A100: 616024 | E100: 2616024013706 | F100: 彭朋 | G100: 男 | H100: 72.40 | J100: 72.40 | K100: 43.44 | L100: 13 | M100: 76.20 | N100: 30.48 | O100: 73.92 | P100: 15
A101: 616024 | E101: 2616024021101 | F101: 刘自林 | G101: 男 | H101: 72.10 | J101: 72.10 | K101: =J101*0.6 -> 43.26 | L101: 15 | M101: 74.40 | N101: =M101*0.4 -> 29.76 | O101: =K101+N101 -> 73.02 | P101: 16
A102: 616024 | E102: 2616024021022 | F102: 李颖 | G102: 女 | H102: 72.00 | J102: 72.00 | K102: 43.20 | L102: 16 | M102: 74.40 | N102: 29.76 | O102: 72.96 | P102: 17
A103: 616024 | E103: 2616024020105 | F103: 杨博 | G103: 男 | H103: 71.80 | J103: 71.80 | K103: 43.08 | L103: 18 | M103: 69.40 | N103: 27.76 | O103: 70.84 | P103: 18
A104: 616025 | B104: 大英县卓筒井镇产业发展服务中心 | C104: 大专：现代农业技术专业、休闲农业专业、生态农业技术专业、园艺技术专业、农业经济管理专业、园林技术专业； 本科：农学专业、园艺专业、林学专业、园林专业 研究生：农业专业、林业专业、林学专业、园艺学专业 | D104: 1 | E104: 2616025022117 | F104: 周恩倩 | G104: 女 | H104: 62.60 | J104: 62.60 | K104: 37.56 | L104: 1 | M104: 74.20 | N104: 29.68 | O104: 67.24 | P104: 1 | Q104: 是
A105: 616025 | E105: 2616025022109 | F105: 冯宪堂 | G105: 男 | H105: 59.10 | J105: 59.10 | K105: 35.46 | L105: 2 | M105: 77.80 | N105: 31.12 | O105: 66.58 | P105: 2
A106: 616025 | E106: 2616025022202 | F106: 刘健 | G106: 男 | H106: 57.40 | J106: 57.40 | K106: 34.44 | L106: 3 | M106: 73.60 | N106: 29.44 | O106: 63.88 | P106: 3
A107: 616026 | B107: 大英县象山镇便民服务中心 | C107: 大专：工程造价专业、水利工程专业、建筑工程技术专业； 本科：工程管理专业、工程造价专业、建筑环境与能源应用工程专业； 研究生：不限 | D107: 1 | E107: 2616026022307 | F107: 刘茂 | G107: 男 | H107: 70.90 | J107: 70.90 | K107: 42.54 | L107: 1 | M107: 75.20 | N107: 30.08 | O107: 72.62 | P107: 1 | Q107: 是
A108: 616026 | E108: 2616026022219 | F108: 冯梁 | G108: 男 | H108: 62.30 | J108: 62.30 | K108: 37.38 | L108: 3 | M108: 76.20 | N108: 30.48 | O108: 67.86 | P108: 2
A109: 616026 | E109: 2616026022213 | F109: 李林 | G109: 男 | H109: 62.50 | J109: 62.50 | K109: 37.50 | L109: 2 | M109: 72.00 | N109: 28.80 | O109: 66.30 | P109: 3
A110: 616027 | B110: 大英县象山镇便民服务中心 | C110: 大专：会计专业、会计电算化专业、统计与会计核算专业； 本科：会计学专业、财务管理专业、经济学专业； 研究生：不限 | D110: 1 | E110: 2616027022519 | F110: 余倩 | G110: 女 | H110: 66.10 | J110: 66.10 | K110: 39.66 | L110: 3 | M110: 81.40 | N110: 32.56 | O110: 72.22 | P110: 1 | Q110: 是
A111: 616027 | E111: 2616027022603 | F111: 陈敬 | G111: 女 | H111: 69.70 | J111: 69.70 | K111: 41.82 | L111: 1 | M111: 74.20 | N111: 29.68 | O111: 71.50 | P111: 2
A112: 616027 | E112: 2616027022430 | F112: 王莉 | G112: 女 | H112: 66.50 | J112: 66.50 | K112: 39.90 | L112: 2 | M112: 74.20 | N112: 29.68 | O112: 69.58 | P112: 3
A113: 616028 | B113: 大英县金元镇便民服务中心 | C113: 大专：财务管理专业、会计专业、会计电算化专业、农业经济管理专业、建筑工程技术专业、电子商务专业、机械设计与制造专业； 本科：财务管理专业、会计学专业、经济学专业、农林经济管理专业、建筑环境与能源应用工程专业、电子商务专业、机械设计制造及其自动化专业； 研究生：不限 | D113: 1 | E113: 2616028022711 | F113: 胡江 | G113: 男 | H113: 66.80 | J113: 66.80 | K113: 40.08 | L113: 2 | M113: 79.20 | N113: 31.68 | O113: 71.76 | P113: 1 | Q113: 是
A114: 616028 | E114: 2616028022729 | F114: 胥亚民 | G114: 男 | H114: 67.10 | J114: 67.10 | K114: 40.26 | L114: 1 | M114: 72.80 | N114: 29.12 | O114: 69.38 | P114: 2
A115: 616028 | E115: 2616028022803 | F115: 廖宇 | G115: 男 | H115: 63.90 | J115: =H115*1 -> 63.90 | K115: 38.34 | L115: 4 | M115: 73.20 | N115: 29.28 | O115: 67.62 | P115: 3
A116: 616029 | B116: 大英县妇幼保健计划生育服务中心 | C116: 本科：临床医学专业； 研究生：临床医学专业 | D116: 1 | E116: 4616029014617 | F116: 杨红 | G116: 女 | H116: 64.00 | J116: 64.00 | K116: 38.40 | L116: 1 | M116: 77.00 | N116: 30.80 | O116: 69.20 | P116: 1 | Q116: 是
A117: 616029 | E117: 4616029014614 | F117: 唐文清 | G117: 女 | H117: 48.00 | J117: 48.00 | K117: 28.80 | L117: 3 | M117: 66.40 | N117: 26.56 | O117: 55.36 | P117: 2
A118: 616031 | B118: 大英县金元镇卫生院 | C118: 大专：医学检验技术专业； 本科：医学检验技术专业； 研究生：临床检验诊断学专业 | D118: 1 | E118: 4616031014619 | F118: 周云霞 | G118: 女 | H118: 47.00 | J118: 47.00 | K118: 28.20 | L118: 1 | M118: 67.00 | N118: 26.80 | O118: 55.00 | P118: 1 | Q118: 是
A119: 616031 | E119: 4616031014618 | F119: 周琴 | G119: 女 | H119: 42.00 | J119: 42.00 | K119: 25.20 | L119: 2 | M119: 68.20 | N119: 27.28 | O119: 52.48 | P119: 2
A120: 616032 | B120: 大英县蓬莱镇通仙卫生院 | C120: 中专：医学影像技术专业； 大专：医学影像技术专业； 本科：医学影像学专业 | D120: 1 | E120: 4616032014623 | F120: 唐甜甜 | G120: 女 | H120: 45.00 | J120: 45.00 | K120: 27.00 | L120: 1 | M120: 66.40 | N120: 26.56 | O120: 53.56 | P120: 1 | Q120: 是
A121: 616032 | E121: 4616032014621 | F121: 陈宁 | G121: 女 | H121: 45.00 | J121: 45.00 | K121: 27.00 | L121: 1 | M121: 57.60 | N121: 23.04 | O121: 50.04 | P121: 2
A122: 616033 | B122: 四川省大英中学 | C122: 本科：数学与应用数学专业； 研究生：学科教学（数学）专业 | D122: 1 | E122: 1616033021209 | F122: 彭和平 | G122: 女 | H122: 74.00 | J122: 74.00 | K122: =J122*0.5 -> 37.00 | L122: 1 | M122: 82.20 | N122: =M122*0.5 -> 41.10 | O122: 78.10 | P122: 1 | Q122: 是
A123: 616033 | E123: 1616033021208 | F123: 刘欢 | G123: 女 | H123: 48.50 | J123: 48.50 | K123: =J123*0.5 -> 24.25 | L123: 2 | M123: 85.40 | N123: =M123*0.5 -> 42.70 | O123: =K123+N123 -> 66.95 | P123: 2
A124: 616034 | B124: 四川省大英中学 | C124: 本科：英语专业； 研究生：学科教学（英语）专业 | D124: 2 | E124: 1616034021213 | F124: 何星翰 | G124: 女 | H124: 81.00 | J124: 81.00 | K124: 40.50 | L124: 2 | M124: 86.40 | N124: 43.20 | O124: 83.70 | P124: 1 | Q124: 是
A125: 616034 | E125: 1616034021217 | F125: 陆颖茜 | G125: 女 | H125: 83.50 | J125: 83.50 | K125: 41.75 | L125: 1 | M125: 81.20 | N125: 40.60 | O125: 82.35 | P125: 2 | Q125: 是
A126: 616034 | E126: 1616034021212 | F126: 吴梅君 | G126: 女 | H126: 77.50 | J126: 77.50 | K126: 38.75 | L126: 4 | M126: 83.00 | N126: 41.50 | O126: 80.25 | P126: 3
A127: 616034 | E127: 1616034021215 | F127: 何英 | G127: 女 | H127: 81.00 | J127: 81.00 | K127: 40.50 | L127: 2 | M127: 74.60 | N127: 37.30 | O127: 77.80 | P127: 4
A128: 616034 | E128: 1616034021211 | F128: 陆荣 | G128: 女 | H128: 69.00 | J128: 69.00 | K128: 34.50 | L128: 6 | M128: 86.20 | N128: 43.10 | O128: 77.60 | P128: 5
A129: 616034 | E129: 1616034021218 | F129: 杨珍 | G129: 女 | H129: 75.00 | J129: 75.00 | K129: 37.50 | L129: 5 | M129: 78.40 | N129: 39.20 | O129: 76.70 | P129: 6
A130: 616035 | B130: 四川省大英县中等职业技术学校 | C130: 本科：生物科学专业； 研究生：学科教学（生物）专业 | D130: 1 | E130: 1616035021230 | F130: 卢倩 | G130: 女 | H130: 76.50 | J130: 76.50 | K130: 38.25 | L130: 2 | M130: 88.00 | N130: 44.00 | O130: 82.25 | P130: 1 | Q130: 是
A131: 616035 | E131: 1616035021224 | F131: 彭川 | G131: 女 | H131: 80.50 | J131: 80.50 | K131: 40.25 | L131: 1 | M131: 81.20 | N131: 40.60 | O131: 80.85 | P131: 2
A132: 616035 | E132: 1616035021226 | F132: 姚中华 | G132: 男 | H132: 65.00 | J132: 65.00 | K132: 32.50 | L132: 4 | M132: 84.20 | N132: 42.10 | O132: 74.60 | P132: 3
A133: 616036 | B133: 四川省大英县中等职业技术学校 | C133: 本科：环境工程专业； 研究生：环境工程专业 | D133: 1 | E133: 1616036021307 | F133: 唐敏 | G133: 女 | H133: 66.50 | J133: 66.50 | K133: 33.25 | L133: 1 | M133: 84.40 | N133: 42.20 | O133: 75.45 | P133: 1 | Q133: 是
A134: 616036 | E134: 1616036021310 | F134: 陈香君 | G134: 女 | H134: 66.00 | J134: 66.00 | K134: 33.00 | L134: 2 | M134: 81.60 | N134: 40.80 | O134: 73.80 | P134: 2
A135: 616036 | E135: 1616036021308 | F135: 范子怡 | G135: 女 | H135: 63.00 | J135: 63.00 | K135: 31.50 | L135: 3 | M135: 78.60 | N135: 39.30 | O135: 70.80 | P135: 3
A136: 616037 | B136: 四川省大英县中等职业技术学校 | C136: 本科：汉语专业、汉语言专业、汉语言文学专业； 研究生：汉语言文字学专业、学科教学（语文）专业 | D136: 1 | E136: 1616037021315 | F136: 黄凤 | G136: 女 | H136: 72.00 | J136: 72.00 | K136: 36.00 | L136: 1 | M136: 83.20 | N136: 41.60 | O136: 77.60 | P136: 1 | Q136: 是
A137: 616037 | E137: 1616037021317 | F137: 曹惠 | G137: 女 | H137: 63.00 | I137: 4.00 | J137: 67.00 | K137: 33.50 | L137: 2 | M137: 84.80 | N137: 42.40 | O137: 75.90 | P137: 2
A138: 616037 | E138: 1616037021314 | F138: 胡佳瑜 | G138: 女 | H138: 64.00 | J138: 64.00 | K138: 32.00 | L138: 3 | M138: 81.80 | N138: 40.90 | O138: 72.90 | P138: 3
A139: 616038 | B139: 四川省大英育才中学 | C139: 本科：汉语专业、汉语言专业、汉语言文学专业； 研究生：汉语言文字学专业、学科教学（语文）专业 | D139: 1 | E139: 1616038021320 | F139: 何沁梅 | G139: 女 | H139: 61.50 | J139: 61.50 | K139: 30.75 | L139: 1 | M139: 80.20 | N139: 40.10 | O139: 70.85 | P139: 1 | Q139: 是
A140: 616039 | B140: 四川省大英育才中学 | C140: 本科：数学与应用数学专业； 研究生：学科教学（数学）专业。 | D140: 1 | E140: 1616039021325 | F140: 王泽梅 | G140: 女 | H140: 58.50 | J140: 58.50 | K140: 29.25 | L140: 1 | M140: 82.40 | N140: 41.20 | O140: 70.45 | P140: 1 | Q140: 是
A141: 616040 | B141: 大英县县城中小学 | C141: 本科：物理学专业、应用物理学专业； 研究生：学科教学（物理）专业 | D141: 1 | E141: 1616040021326 | F141: 王涛 | G141: 男 | H141: 63.00 | J141: 63.00 | K141: 31.50 | L141: 3 | M141: 87.14 | N141: 43.57 | O141: 75.07 | P141: 1 | Q141: 是
A142: 616040 | E142: 1616040021327 | F142: 何礼迪 | G142: 女 | H142: 73.50 | J142: 73.50 | K142: 36.75 | L142: 1 | M142: 75.94 | N142: 37.97 | O142: 74.72 | P142: 2
A143: 616040 | E143: 1616040021328 | F143: 李柳松 | G143: 男 | H143: 72.50 | J143: 72.50 | K143: 36.25 | L143: 2 | M143: 68.73 | N143: 34.37 | O143: 70.62 | P143: 3
A144: 616041 | B144: 大英县县城中小学 | C144: 本科：汉语专业、汉语言专业、汉语言文学专业、小学教育专业； 研究生：汉语言文字学专业、学科教学（语文）专业 | D144: 2 | E144: 1616041021402 | F144: 杨川 | G144: 男 | H144: 81.00 | J144: 81.00 | K144: 40.50 | L144: 1 | M144: 81.00 | N144: 40.50 | O144: 81.00 | P144: 1 | Q144: 是
A145: 616041 | E145: 1616041021406 | F145: 李佳燕 | G145: 女 | H145: 71.50 | J145: 71.50 | K145: 35.75 | L145: 3 | M145: 86.80 | N145: 43.40 | O145: 79.15 | P145: 2 | Q145: 是
A146: 616041 | E146: 1616041021405 | F146: 秦天宝 | G146: 男 | H146: 72.00 | J146: 72.00 | K146: 36.00 | L146: 2 | M146: 83.80 | N146: 41.90 | O146: 77.90 | P146: 3
A147: 616041 | E147: 1616041021408 | F147: 郭琳 | G147: 女 | H147: 71.50 | J147: 71.50 | K147: 35.75 | L147: 3 | M147: 83.00 | N147: 41.50 | O147: 77.25 | P147: 4
A148: 616041 | E148: 1616041021401 | F148: 王玉萍 | G148: 女 | H148: 70.50 | J148: 70.50 | K148: 35.25 | L148: 5 | M148: 83.20 | N148: 41.60 | O148: 76.85 | P148: 5
A149: 616041 | E149: 1616041021407 | F149: 弋珏涟 | G149: 女 | H149: 70.50 | J149: 70.50 | K149: 35.25 | L149: 5 | M149: 79.80 | N149: 39.90 | O149: 75.15 | P149: 6
A150: 616042 | B150: 大英县县城中小学 | C150: 本科：体育教育专业、运动训练专业； 研究生：学科教学（体育）专业 | D150: 2 | E150: 1616042021420 | F150: 文白露 | G150: 男 | H150: 80.50 | J150: 80.50 | K150: 40.25 | L150: 1 | M150: 82.60 | N150: 41.30 | O150: 81.55 | P150: 1 | Q150: 是
A151: 616042 | E151: 1616042021413 | F151: 杨思琪 | G151: 女 | H151: 77.00 | J151: 77.00 | K151: 38.50 | L151: 2 | M151: 76.90 | N151: 38.45 | O151: 76.95 | P151: 2 | Q151: 是
A152: 616042 | E152: 1616042021411 | F152: 陈东 | G152: 女 | H152: 67.00 | J152: 67.00 | K152: 33.50 | L152: 3 | M152: 81.00 | N152: 40.50 | O152: 74.00 | P152: 3
A153: 616042 | E153: 1616042021417 | F153: 叶鑫 | G153: 男 | H153: 48.00 | J153: 48.00 | K153: 24.00 | L153: 9 | M153: 73.40 | N153: 36.70 | O153: 60.70 | P153: 4
A154: 616042 | E154: 1616042021422 | F154: 游波 | G154: 男 | H154: 47.50 | J154: 47.50 | K154: 23.75 | L154: 10 | M154: 0.00 | N154: 0.00 | O154: 23.75 | P154: 5
A155: 616043 | B155: 大英县县城中小学 | C155: 本科：数学与应用数学专业、小学教育专业； 研究生：学科教学（数学）专业 | D155: 2 | E155: 1616043021429 | F155: 周治萍 | G155: 女 | H155: 73.00 | J155: 73.00 | K155: =J155*0.5 -> 36.50 | L155: 2 | M155: 85.95 | N155: =M155*0.5 -> 42.98 | O155: =K155+N155 -> 79.48 | P155: 1 | Q155: 是
A156: 616043 | E156: 1616043021423 | F156: 唐高明 | G156: 男 | H156: 76.00 | J156: 76.00 | K156: 38.00 | L156: 1 | M156: 78.86 | N156: 39.43 | O156: 77.43 | P156: 2 | Q156: 是
A157: 616043 | E157: 1616043021425 | F157: 黄婷 | G157: 女 | H157: 73.00 | J157: 73.00 | K157: 36.50 | L157: 2 | M157: 76.11 | N157: 38.06 | O157: 74.56 | P157: 3
A158: 616043 | E158: 1616043021427 | F158: 林星佑 | G158: 女 | H158: 70.50 | J158: 70.50 | K158: 35.25 | L158: 4 | M158: 70.71 | N158: 35.36 | O158: 70.61 | P158: 4
A159: 616044 | B159: 大英县县城中小学 | C159: 本科：英语专业； 研究生：学科教学（英语）专业 | D159: 2 | E159: 1616044021508 | F159: 杨杰 | G159: 女 | H159: 75.00 | J159: 75.00 | K159: 37.50 | L159: 6 | M159: 87.54 | N159: 43.77 | O159: 81.27 | P159: 1 | Q159: 是
A160: 616044 | E160: 1616044021502 | F160: 蒋京廷 | G160: 女 | H160: 79.00 | J160: 79.00 | K160: 39.50 | L160: 3 | M160: 77.46 | N160: 38.73 | O160: 78.23 | P160: 2 | Q160: 是
A161: 616044 | E161: 1616044021522 | F161: 廖煊 | G161: 女 | H161: 77.00 | J161: 77.00 | K161: 38.50 | L161: 5 | M161: 78.63 | N161: 39.32 | O161: 77.82 | P161: 3
A162: 616044 | E162: 1616044021516 | F162: 钱缘 | G162: 女 | H162: 83.00 | J162: 83.00 | K162: 41.50 | L162: 1 | M162: 71.54 | N162: 35.77 | O162: 77.27 | P162: 4
A163: 616044 | E163: 1616044021513 | F163: 唐婷婷 | G163: 女 | H163: 79.50 | J163: 79.50 | K163: 39.75 | L163: 2 | M163: 72.27 | N163: 36.14 | O163: 75.89 | P163: 5
A164: 616044 | E164: 1616044021510 | F164: 彭琳珠 | G164: 女 | H164: 78.00 | J164: 78.00 | K164: 39.00 | L164: 4 | M164: 72.02 | N164: 36.01 | O164: 75.01 | P164: 6
A165: 616045 | B165: 大英县农村中小学 | C165: 大专：美术教育专业； 本科：美术学专业； 研究生：学科教学（美术）专业 | D165: 2 | E165: 1616045021604 | F165: 徐铄 | G165: 男 | H165: 80.00 | J165: 80.00 | K165: 40.00 | L165: 1 | M165: 78.90 | N165: 39.45 | O165: 79.45 | P165: 1 | Q165: 是
A166: 616045 | E166: 1616045021527 | F166: 李忠艳 | G166: 女 | H166: 79.00 | J166: 79.00 | K166: 39.50 | L166: 2 | M166: 76.20 | N166: 38.10 | O166: 77.60 | P166: 2 | Q166: 是
A167: 616045 | E167: 1616045021602 | F167: 汤丽莎 | G167: 女 | H167: 75.00 | J167: 75.00 | K167: 37.50 | L167: 3 | M167: 79.60 | N167: 39.80 | O167: 77.30 | P167: 3
A168: 616045 | E168: 1616045021606 | F168: 宋倩 | G168: 女 | H168: 72.00 | J168: 72.00 | K168: 36.00 | L168: 4 | M168: 72.10 | N168: 36.05 | O168: 72.05 | P168: 4
A169: 616045 | E169: 1616045021528 | F169: 何丽苑 | G169: 女 | H169: 68.00 | J169: 68.00 | K169: 34.00 | L169: 5 | M169: 75.90 | N169: 37.95 | O169: 71.95 | P169: 5
A170: 616045 | E170: 1616045021530 | F170: 梁英 | G170: 女 | H170: 67.00 | J170: 67.00 | K170: 33.50 | L170: 6 | M170: 74.80 | N170: 37.40 | O170: 70.90 | P170: 6
A171: 616047 | B171: 大英县农村中小学 | C171: 本科：化学专业、应用化学专业、化学生物学专业； 研究生：学科教学（化学） | D171: 2 | E171: 1616047021611 | F171: 谌晓艳 | G171: 女 | H171: 73.50 | J171: 73.50 | K171: 36.75 | L171: 1 | M171: 86.83 | N171: 43.42 | O171: 80.17 | P171: 1 | Q171: 是
A172: 616047 | E172: 1616047021616 | F172: 杨玥 | G172: 女 | H172: 71.50 | J172: 71.50 | K172: 35.75 | L172: 2 | M172: 78.57 | N172: 39.29 | O172: 75.04 | P172: 2 | Q172: 是
A173: 616047 | E173: 1616047021615 | F173: 段长文 | G173: 男 | H173: 66.00 | J173: 66.00 | K173: 33.00 | L173: 5 | M173: 82.81 | N173: 41.41 | O173: 74.41 | P173: 3
A174: 616047 | E174: 1616047021614 | F174: 徐婷婷 | G174: 女 | H174: 69.00 | J174: 69.00 | K174: 34.50 | L174: 4 | M174: 72.89 | N174: 36.45 | O174: 70.95 | P174: 4
A175: 616047 | E175: 1616047021610 | F175: 但辰 | G175: 女 | H175: 69.50 | J175: 69.50 | K175: 34.75 | L175: 3 | M175: 72.03 | N175: 36.02 | O175: 70.77 | P175: 5
A176: 616047 | E176: 1616047021612 | F176: 吴佳丽 | G176: 女 | H176: 65.50 | J176: 65.50 | K176: 32.75 | L176: 6 | M176: 75.38 | N176: 37.69 | O176: 70.44 | P176: 6
A177: 616048 | B177: 大英县农村中小学 | C177: 大专：英语专业、应用英语专业、英语教育专业、初等教育专业、小学教育专业； 本科：英语专业、小学教育专业 | D177: 2 | E177: 1616048021623 | F177: 万勇 | G177: 男 | H177: 75.00 | J177: 75.00 | K177: 37.50 | L177: 4 | M177: 86.70 | N177: 43.35 | O177: 80.85 | P177: 1 | Q177: 是
A178: 616048 | E178: 1616048021715 | F178: 刘欣雨 | G178: 女 | H178: 75.00 | J178: 75.00 | K178: 37.50 | L178: 4 | M178: 85.01 | N178: 42.51 | O178: 80.01 | P178: 2 | Q178: 是
A179: 616048 | E179: 1616048021701 | F179: 冯颖 | G179: 女 | H179: 82.00 | J179: 82.00 | K179: 41.00 | L179: 1 | M179: 77.27 | N179: 38.64 | O179: 79.64 | P179: 3
A180: 616048 | E180: 1616048021717 | F180: 邓怡 | G180: 女 | H180: 78.00 | J180: 78.00 | K180: 39.00 | L180: 2 | M180: 79.61 | N180: 39.81 | O180: 78.81 | P180: 4
A181: 616048 | E181: 1616048021707 | F181: 黄列萍 | G181: 女 | H181: 76.00 | J181: 76.00 | K181: 38.00 | L181: 3 | M181: 75.56 | N181: 37.78 | O181: 75.78 | P181: 5
A182: 616048 | E182: 1616048021718 | F182: 陈艳 | G182: 女 | H182: 72.00 | J182: 72.00 | K182: 36.00 | L182: 6 | M182: 70.09 | N182: 35.05 | O182: 71.05 | P182: 6
A183: 616049 | B183: 大英县城乡公立幼儿园 | C183: 大专：学前教育专业； 本科：学前教育专业； 研究生：学前教育专业、学前教育学专业 | D183: 4 | E183: 1616049021806 | F183: 邓鹏义 | G183: 女 | H183: 70.50 | J183: 70.50 | K183: 35.25 | L183: 6 | M183: 79.60 | N183: 39.80 | O183: 75.05 | P183: 1 | Q183: 是
A184: 616049 | E184: 1616049021826 | F184: 梁静 | G184: 女 | H184: 71.50 | J184: 71.50 | K184: 35.75 | L184: 4 | M184: 77.80 | N184: 38.90 | O184: 74.65 | P184: 2 | Q184: 是
A185: 616049 | E185: 1616049021821 | F185: 李金香 | G185: 女 | H185: 75.00 | J185: 75.00 | K185: 37.50 | L185: 1 | M185: 73.50 | N185: 36.75 | O185: 74.25 | P185: 3 | Q185: 是
A186: 616049 | E186: 1616049021730 | F186: 李慧 | G186: 女 | H186: 64.50 | J186: 64.50 | K186: 32.25 | L186: 11 | M186: 83.20 | N186: 41.60 | O186: 73.85 | P186: 4 | Q186: 是
A187: 616049 | E187: 1616049021901 | F187: 袁君 | G187: 女 | H187: 73.50 | J187: 73.50 | K187: 36.75 | L187: 2 | M187: 72.90 | N187: 36.45 | O187: 73.20 | P187: 5
A188: 616049 | E188: 1616049021815 | F188: 李虹颖 | G188: 女 | H188: 70.50 | J188: 70.50 | K188: 35.25 | L188: 6 | M188: 75.60 | N188: 37.80 | O188: 73.05 | P188: 6
A189: 616049 | E189: 1616049021810 | F189: 冯文燕 | G189: 女 | H189: 69.50 | J189: 69.50 | K189: 34.75 | L189: 8 | M189: 76.30 | N189: 38.15 | O189: 72.90 | P189: 7
A190: 616049 | E190: 1616049021909 | F190: 田维 | G190: 女 | H190: 64.50 | J190: 64.50 | K190: 32.25 | L190: 11 | M190: 80.40 | N190: 40.20 | O190: 72.45 | P190: 8
A191: 616049 | E191: 1616049021728 | F191: 蒋欢 | G191: 女 | H191: 72.50 | J191: 72.50 | K191: 36.25 | L191: 3 | M191: 71.40 | N191: 35.70 | O191: 71.95 | P191: 9
A192: 616049 | E192: 1616049021910 | F192: 漆丹 | G192: 女 | H192: 65.50 | J192: 65.50 | K192: 32.75 | L192: 10 | M192: 75.50 | N192: 37.75 | O192: 70.50 | P192: 10
A193: 616049 | E193: 1616049021727 | F193: 方鹏鹏 | G193: 男 | H193: 64.50 | J193: 64.50 | K193: 32.25 | L193: 11 | M193: 73.80 | N193: 36.90 | O193: 69.15 | P193: 11
A194: 616049 | E194: 1616049021902 | F194: 李仲芳 | G194: 女 | H194: 63.50 | J194: 63.50 | K194: 31.75 | L194: 14 | M194: 74.10 | N194: 37.05 | O194: 68.80 | P194: 12
